Cogmind - Beta 13 @@@ ROGUE MODE // 2024.05.06 @ 02:31:10 Player: Wasdx Result: Destroyed by H-61 Shepherd with Heavy Assault Cannon Performance ------------- Evolutions (2) 1000 Regions Visited (4) 800 Robots Destroyed (59) 295 Value Destroyed (1170) 1170 Prototype IDs (4) 80 Alien Tech Used (0) 0 Bonus (25) 25 TOTAL SCORE: 3370 Bonus ------- Follower Combat Kills 25 Cogmind --------- Core Integrity 0/550 Matter 279/300 Energy 75/100 System Corruption 9% Temperature Cool (0) Movement Core (50) Location -8/Materials Parts ------- > --- POWER (1) -------- (None) > --- PROPULSION (4) --- (None) > --- UTILITY (3) ------ Hacking Suite > --- WEAPON (3) ------- Blade Saw > --- INVENTORY (5) ---- Light Deuterium Engine Light Deuterium Engine Light Deuterium Engine Improved Weapon Shielding Peak State ------------ > --- POWER ------------ Cooled Ion Engine > --- PROPULSION ------- Aluminum Leg Aluminum Leg Aluminum Leg > --- UTILITY ---------- Kinecellerator Hacking Suite System Shield > --- WEAPON ----------- Heavy Particle Cannon Plasma Cannon Shotgun > --- INVENTORY -------- Light Deuterium Engine Light Deuterium Engine Light Deuterium Engine Improved Grenade Launcher [Rating: 26] Favorites ----------- Power Light Ion Engine Engine Light Ion Engine Propulsion Aluminum Leg Treads Light Treads Leg Aluminum Leg Flight Unit Improved Flight Unit Utility Hacking Suite Device Improved Heat Sink Processor Machine Analyzer Hackware Hacking Suite Protection Propulsion Shielding Weapon Light Assault Rifle Energy Gun Particle Gun Energy Cannon Heavy Particle Cannon Ballistic Gun Light Assault Rifle Launcher Improved Grenade Launcher Slashing Weapon Blade Saw Build | -11 -10 -10 -9 -8 ------- Run | Yrd Mat Min Mat Mat Slots Evolved 4 | . . . 2 2 Power . | . . . . . Propulsion 2 | . . . 1 1 Utility 1 | . . . 1 . Weapon 1 | . . . . 1 Parts Attached 44 | 5 3 5 16 15 Power 7 | 1 1 . 3 2 Engine 7 | 1 1 . 3 2 Core . | . . . . . Reactor . | . . . . . Propulsion 14 | 2 . 3 7 2 Treads 1 | . . . . 1 Leg 12 | 2 . 3 6 1 Wheel . | . . . . . Hover . | . . . . . Flight 1 | . . . 1 . Utility 9 | . 2 1 1 5 Device 3 | . . . . 3 Storage . | . . . . . Processor 2 | . 1 1 . . Hackware 2 | . 1 . . 1 Protection 2 | . . . 1 1 Artifact . | . . . . . Weapon 14 | 2 . 1 5 6 Energy Gun 1 | . . 1 . . Energy Cannon 5 | . . . 2 3 Ballistic Gun 6 | 2 . . 3 1 Ballistic Cannon . | . . . . . Launcher 1 | . . . . 1 Special Weapon . | . . . . . Impact Weapon . | . . . . . Slashing Weapon 1 | . . . . 1 Piercing Weapon . | . . . . . Special Melee Weapon . | . . . . . Unidentified Prototypes 4 | . . . 4 . Parts Lost 15 | . . . 5 10 Power 2 | . . . 1 1 Propulsion 6 | . . . 4 2 Utility 3 | . . . . 3 Weapon 4 | . . . . 4 Highest Loss Streak 6 | . . . 2 6 To Critical Strikes . | . . . . . Average Slot Usage (%) 88 | . 87 99 84 76 Engine 11 | . 14 14 9 7 Leg 25 | . 28 27 26 19 Processor 9 | . 8 14 11 1 Hackware 12 | . 7 14 11 15 Protection 1 | . . . 4 3 Energy Gun 5 | . . 12 5 . Energy Cannon 4 | . . . 5 12 Ballistic Gun 14 | . 28 15 10 12 Naked Turns . | . . . . . Heaviest Build 28 | 8 8 7 16 28 Greatest Support 47 | 20 20 20 30 47 Greatest Overweight (x) 6 | . . . 1 6 Average Overweight (x) . | . . . . . Largest Inventory Capacity 5 | 5 5 5 5 5 Average Capacity 5 | 5 5 5 5 5 Most Carried 5 | 3 5 5 5 5 Average Carried 4 | 1 4 5 3 4 Final Capacity 5 | 5 5 5 5 5 Final Carried 5 | 4 5 5 3 4 Class Distribution -------------------- 56% | Scavenger-Mutant 20% | Mutant 16% | Hacker-Gunner 3% | Scavenger-Tank 3% | Hacker-Tank Dominant Class ---------------- Mutant | -10/Materials Scavenger-Mutant | -10/Mines Scavenger-Mutant | -9/Materials Hacker-Gunner | -8/Materials Resources | -11 -10 -10 -9 -8 ----------- Run | Yrd Mat Min Mat Mat Matter Collected 1232 | 314 90 129 271 428 Remotely . | . . . . . Salvage Created 1829 | 204 176 310 584 555 Parts 122 | 14 17 18 29 44 Haulers Intercepted 2 | . . . 1 1 Recyclers Shooed 1 | 1 . . . . Parts Field Recycled . | . . . . . Retrieved Matter . | . . . . . Parts Self-Destructed . | . . . . . Prevented . | . . . . . Kills | -11 -10 -10 -9 -8 ------- Run | Yrd Mat Min Mat Mat Combat Hostiles Destroyed 37 | . 4 6 14 13 Guns 29 | . 4 6 12 7 Cannons 8 | . . . 2 6 Classes Destroyed 13 | 3 4 1 3 2 Worker 3 | 2 . 1 . . Builder 2 | . . . . 2 Tunneler 5 | 5 . . . . Hauler 2 | . . . 1 1 Recycler 4 | 1 1 . 1 1 Mechanic 1 | . . 1 . . Operator 1 | . 1 . . . Watcher 4 | . 1 . 2 1 Swarmer 14 | . 3 . 5 6 Cutter 3 | . . . . 3 Grunt 16 | . 1 6 6 3 Duelist 1 | . . . 1 . Sentry 3 | . . . 2 1 Best Kill Streak 5 | 4 4 3 4 5 Combat Bots Only 3 | . 3 3 3 3 Max Kills in Single Turn 2 | 1 1 2 1 2 Gunslinging 1 | . . . . 1 Exploded . | . . . . . Melee . | . . . . . Uniques/NPCs Destroyed . | . . . . . Combat | -11 -10 -10 -9 -8 -------- Run | Yrd Mat Min Mat Mat Hostile Shots Fired 211 | . 12 53 72 74 Missed 56 | . 4 13 21 18 Damage Taken 2905 | . 69 498 668 1670 Core 895 | . 17 201 82 595 Absorbed by Shields . | . . . . . Redirected to Shielding 15 | . . . 8 7 Core Remaining (%) 63 | 100 . 12 79 . Volleys Fired 164 | 16 18 27 55 48 Largest 3 | 2 2 2 2 3 Hottest 178 | 40 40 85 133 178 Shots Fired 337 | 32 36 52 109 108 Gun 266 | 32 36 52 82 64 Cannon 71 | . . . 27 44 Launcher . | . . . . . Special . | . . . . . Kinetic 222 | 32 36 41 49 64 Thermal 115 | . . 11 60 44 Explosive . | . . . . . Electromagnetic . | . . . . . Robot Hit Streak 11 | 5 4 5 11 8 Robot Miss Streak 9 | 3 2 4 9 5 Penetration Max . | . . . . . Secondary Targets 4 | . . 3 . 1 Max Gunslinging Chain 1 | . . 1 . 1 Shots Hit Robots 171 | 16 21 21 62 51 Core Hits 94 | 11 11 16 27 29 Critical Kills 2 | 1 . . . 1 Critical Parts Destroyed . | . . . . . Critical Strikes 5 | 1 . 1 2 1 Burn 3 | . . 1 2 . Destroy 2 | 1 . . . 1 Melee Attacks 5 | . . . . 5 Impact . | . . . . . Slashing 5 | . . . . 5 Piercing . | . . . . . Sneak Attacks . | . . . . . Combat Hostiles . | . . . . . Follow-up Attacks . | . . . . . Damage Inflicted 2723 | 185 221 289 919 1109 Guns 1851 | 185 221 289 714 442 Cannons 838 | . . . 205 633 Explosions . | . . . . . Melee 25 | . . . . 25 Ramming 9 | . . . . 9 Kinetic 1394 | 185 221 203 343 442 Thermal 1295 | . . 86 576 633 Explosive . | . . . . . Electromagnetic . | . . . . . Impact . | . . . . . Slashing 25 | . . . . 25 Piercing . | . . . . . Highest Corruption 9 | . . . . 9 Average Corruption 9 | . . . . 9 Corruption Purged . | . . . . . Corruption Blocked . | . . . . . Effects 19 | . . . . 19 Message Errors 4 | . . . . 4 Matter Fused 2 | . . . . 2 Heat Flow Errors 3 | . . . . 3 Energy Discharges 3 | . . . . 3 Parts Rejected 1 | . . . . 1 Parts Fused 1 | . . . . 1 Data Loss (minor) 3 | . . . . 3 Data Loss (major) 2 | . . . . 2 Overload Shots . | . . . . . Overflow Damage 5 | . . . . 5 Projectiles 5 | . . . . 5 Explosions . | . . . . . Melee . | . . . . . Knockbacks . | . . . . . Impact . | . . . . . Kinetic . | . . . . . Secondary . | . . . . . Self-Inflicted Damage . | . . . . . Shots . | . . . . . Rammed . | . . . . . Targets Rammed 2 | . . . . 2 Kicked 2 | . . . . 2 Crushed . | . . . . . Highest Temperature 614 | . 6 226 414 614 Average Temperature 106 | . 6 54 100 139 Received Heat Transfer 711 | . 12 357 135 207 Effects 15 | . . . 3 12 Shutdowns 2 | . . . . 2 Energy Bleed 2 | . . . 2 . Matter Decay 2 | . . . . 2 Short Circuit 3 | . . . 1 2 Damage (minor) 1 | . . . . 1 Damage (major) 4 | . . . . 4 Damage (core) 1 | . . . . 1 Siege Activations . | . . . . . Robots Corrupted . | . . . . . Combat Hostiles . | . . . . . Parts Fried . | . . . . . Impact Corruptions . | . . . . . Robots Melted . | . . . . . Combat Hostiles . | . . . . . Parts Melted 6 | . . . 5 1 Heat Transferred 2770 | . . 296 1406 1068 Parts Sabotaged . | . . . . . Parts Stolen . | . . . . . Parts Stripped . | . . . . . Power Chain Reactions . | . . . . . Alert | -11 -10 -10 -9 -8 ------- Run | Yrd Mat Min Mat Mat Peak Influence 331 | 40 193 156 293 331 Initial 96 | . 26 75 . 96 Average 133 | 13 123 75 176 198 Maximum Alert Level 1 | . . . 1 1 Low Security (%) 75 | 100 100 100 52 48 Level 1 24 | . . . 47 51 Level 2 . | . . . . . Level 3 . | . . . . . Level 4 . | . . . . . Level 5 . | . . . . . High Security . | . . . . . Max Security . | . . . . . Squads Dispatched 8 | . 1 1 3 3 Investigation 1 | . . . 1 . Extermination . | . . . . . Reinforcement 6 | . 1 . 2 3 Assault 1 | . . 1 . . Garrison . | . . . . . Intercept . | . . . . . Searches Triggered . | . . . . . Construction Impeded . | . . . . . Haulers Reinforced . | . . . . . Active Scanning Responses . | . . . . . Cargo Convoy Interrupts . | . . . . . Stealth | -11 -10 -10 -9 -8 --------- Run | Yrd Mat Min Mat Mat Distress Signals 4 | . . 2 1 1 Communications Jammed . | . . . . . Distress Signals . | . . . . . Times Spotted 67 | . 10 11 27 19 Peak Tracking Total 7 | . 3 4 7 4 Tactical Retreats 7 | . . 2 3 2 Traps | -11 -10 -10 -9 -8 ------- Run | Yrd Mat Min Mat Mat Traps Triggered 3 | . . . 2 1 Indirectly . | . . . . . Trap Hack Attempts . | . . . . . Triggered . | . . . . . Disarmed . | . . . . . Reprogrammed . | . . . . . Reused . | . . . . . Traps Extracted . | . . . . . Installed . | . . . . . Triggered . | . . . . . Machines | -11 -10 -10 -9 -8 ---------- Run | Yrd Mat Min Mat Mat Machines Disabled 2 | . . . 1 1 Max in Single Turn 1 | . . . 1 1 Machines Repaired . | . . . . . Machines Dismantled . | . . . . . Machines Sabotaged . | . . . . . Overloaded Fab Kills . | . . . . . Hacking | -11 -10 -10 -9 -8 --------- Run | Yrd Mat Min Mat Mat Machines Accessed 7 | . 2 1 3 1 Terminals 6 | . 1 1 3 1 Fabricators . | . . . . . Repair Stations . | . . . . . Recycling Units 1 | . 1 . . . Scanalyzers . | . . . . . Garrison Access . | . . . . . Total Hacks 18 | . 8 1 7 2 Successful 9 | . 5 1 3 . Failed 9 | . 3 . 4 2 Catastrophic 1 | . . . 1 . Database Lockouts . | . . . . . Manual 1 | . . . 1 . Terminals 15 | . 5 1 7 2 Fabricators . | . . . . . Repair Stations . | . . . . . Recycling Units 3 | . 3 . . . Scanalyzers . | . . . . . Garrison Access . | . . . . . Terminal Hacks 6 | . 2 1 3 . Dispatch Records 2 | . . 1 1 . Investigation Status 1 | . 1 . . . Recall Investigation 1 | . . . 1 . Hauler Manifests 1 | . 1 . . . Zone Layout 1 | . . . 1 . Fabricator Hacks . | . . . . . Repair Station Hacks . | . . . . . Recycling Unit Hacks 3 | . 3 . . . Process 1 | . 1 . . . Report Inventory 1 | . 1 . . . Retrieve Matter 1 | . 1 . . . Scanalyzer . | . . . . . Garrison Access Hacks . | . . . . . Unauthorized Hacks . | . . . . . Terminals . | . . . . . Fabricators . | . . . . . Repair Stations . | . . . . . Recycling Units . | . . . . . Scanalyzers . | . . . . . Garrison Access . | . . . . . Data Cores Recovered . | . . . . . Used . | . . . . . Hacking Detections 5 | . 2 . 2 1 Full Trace Events 1 | . . . 1 . Feedback Events . | . . . . . Feedback Blocked . | . . . . . Robot Schematics Acquired . | . . . . . Robots Built . | . . . . . Authchips . | . . . . . Time . | . . . . . Total Robot Build Rating . | . . . . . Part Schematics Acquired . | . . . . . Parts Built . | . . . . . Authchips . | . . . . . Time . | . . . . . Total Part Build Rating . | . . . . . Parts Repaired . | . . . . . Time . | . . . . . Parts Recycled . | . . . . . Recycled Matter 2 | . 2 . . . Retrieved Matter 2 | . 2 . . . Retrieved Components . | . . . . . Parts Scanalyzed . | . . . . . Part Schematics Acquired . | . . . . . Parts Damaged . | . . . . . Bothacking | -11 -10 -10 -9 -8 ------------ Run | Yrd Mat Min Mat Mat Used RIF Installer . | . . . . . Robots Hacked . | . . . . . Non-combat . | . . . . . Combat . | . . . . . Robot Hacks Applied . | . . . . . Relay Couplers Released . | . . . . . Fabnet Peak Effective % . | . . . . . Robots Rewired . | . . . . . Allies Hacked . | . . . . . Hacks Repelled . | . . . . . Allies | -11 -10 -10 -9 -8 -------- Run | Yrd Mat Min Mat Mat Total Allies 1 | . . 1 . . Largest Group 1 | . . 1 . . Highest-Rated Group 31 | . . 31 . . Highest-Rated Ally 31 | . . 31 . . Total Orders . | . . . . . Ally Attacks 5 | . . 5 . . Total Damage 104 | . . 104 . . Kills 1 | . . 1 . . Allies Corrupted . | . . . . . Allies Melted . | . . . . . Intel | -11 -10 -10 -9 -8 ------- Run | Yrd Mat Min Mat Mat Robot Analysis Total . | . . . . . Derelict Logs Recovered 1 | . . 1 . . Drone Launches . | . . . . . Drone Recoveries . | . . . . . Exploration | -11 -10 -10 -9 -8 ------------- Run | Yrd Mat Min Mat Mat Turns Passed 2532 | 113 269 908 549 693 Spaces Moved 1308 | 50 171 502 267 318 Core 63 | 3 . . . 60 Treads 10 | . . . . 10 Legs 1235 | 47 171 502 267 248 Wheels . | . . . . . Hover . | . . . . . Flight . | . . . . . Fastest Speed 50 | 50 120 120 120 50 Average Speed 129 | 115 120 120 123 156 Slowest Speed 350 | 120 120 120 190 350 Overloaded Moves . | . . . . . Propulsion Burnouts . | . . . . . Robots Hopped . | . . . . . Cave-ins Triggered 1 | . . . . 1 Exploration Rate (%) 32 | 4 24 91 23 21 Regions Visited 4 Branch Regions 1 Pre-discovered Areas . | . . . . . Known Exits Taken 2 | . 1 1 . . Unknown Exits Taken 2 | 1 . . 1 . Scrap Searched 1 | . . 1 . . Spaces Dug 7 | . . . . 7 Terrain Destroyed 19 | . . . . 19 Melee . | . . . . . Projectile 19 | . . . . 19 AOE . | . . . . . Terrain Rammed . | . . . . . Walls Destroyed . | . . . . . Machines Disabled . | . . . . . Actions | -11 -10 -10 -9 -8 --------- Run | Yrd Mat Min Mat Mat Total 1828 | 74 202 761 376 415 Wait 268 | . 5 223 27 13 Move 1304 | 49 170 501 266 318 Hop . | . . . . . Pick Up 14 | 4 3 . 2 5 Fast Attach 40 | 5 3 5 13 14 Attach 5 | . . . 4 1 Detach . | . . . . . Swap . | . . . . . Drop 26 | . 3 5 9 9 Fire 164 | 16 18 27 55 48 Melee 5 | . . . . 5 Ram . | . . . . . Kick 2 | . . . . 2 Crush . | . . . . . Escape Stasis . | . . . . . Rewire . | . . . . . Trap . | . . . . . Miscellaneous . | . . . . . Route ------- -11/Scrapyard -10/Materials -10/Mines -9/Materials -8/Materials History --------- Turn | Location | Event 20 | -11/Scrapyard | Discovered new exit (range 14) 114 | -11/Scrapyard | Entered Materials 228 | -10/Materials | Discovered new exit (range 15) 341 | -10/Materials | Build established: Mutant 382 | -10/Materials | Identified exit to Mines 383 | -10/Materials | Entered Mines 384 | -10/Mines | Met a Derelict testing a Signal Generator 476 | -10/Mines | Core integrity fell below 50% 580 | -10/Mines | Learned Materials garrison access intel 597 | -10/Mines | Discovered new exit (range 15) 613 | -10/Mines | Identified exit to Materials 755 | -10/Mines | Excavation squad dispatched 755 | -10/Mines | A large section of the Mines collapsed 783 | -10/Mines | Build established: Scavenger-Mutant 975 | -10/Mines | Core integrity fell below 20% 1291 | -10/Mines | Entered Materials 1291 | -9/Materials | Evolved 2 slots: Propulsion x1, Utility x1 1832 | -9/Materials | Discovered new exit (range 7) 1840 | -9/Materials | Entered another Materials area 1840 | -8/Materials | Evolved 2 slots: Propulsion x1, Weapon x1 1841 | -8/Materials | Loaded intel: 1 garrison access location 2057 | -8/Materials | Crushed by falling debris 2346 | -8/Materials | Build established: Hacker-Gunner 2485 | -8/Materials | Core integrity fell below 50% 2521 | -8/Materials | Core integrity fell below 20% 2533 | -8/Materials | Destroyed by H-61 Shepherd with Heavy Assault Cannon Last Messages --------------- U-05 Engineer builds a Wall. Acquired Reaction Control System. Imp. Grenade Launcher destroyed. Knocked back. System corrupted: Substantial component data lost. Acquired 21 matter. K-01 Serf collects debris. U-05 Engineer builds a Wall. Acquired Blade Saw. Reaction Control System destroyed. Knocked back. H-61 Shepherd calls for reinforcements. ALERT: Hostile activity reported, dispatching reinforcements to area. Knocked back. M-28 Smith repairs Lgt. Ion Engine. U-05 Engineer builds a Wall. K-01 Serf cleans the Material Processor. Knocked back. Map ----- +----------------------------------------------------+ | ??????????# # ############ ### """ # | | ??????????# # # !!! + + """ # | | ????????############ # !! # %# # | | ??????? # !! # %#= """ # | | ??????? # + =+ [ """ + | | ????????############ + " "" ###+###= """ # | | ???????????????????# # "R"" ## # # | | ???????????????????# # """" ## # [# | | ???????????????????# # ## [ ######### | | ???????????????????# ############ #???????# | | ???????????????????# #??##??##??# #???????# | | ???????????????????# ########T################ | | ???????????????????# = | | ???????????????????# u | | ???????????????????# """ """ "" | | ???????????????????# """"" """"" R | | ???????????????????##### """"" """" "" | | ???????????????????????# """"" """"" | | ???????????????????????# u """k " | | ?????????????????? ????# m | | ???????????????""" """?#a !%[%* | | ???????????????""" """ # %u t ############## | | ???????????????""" """ + *%]% ###????##????# | | ?????????????????????? #=%*=! #????????????#== | | ???????????????????????#*/%########????????????#== | | ???????????????????????#=@u##??????????????????### | | ???????????????????????#%tH##????????????????????? | | ???????????????????????# !=#?????????????????????? | | ???????????????????????#k%=#????????????????""""?? | | ???????????????????????# ! #????????????????""""?? | | ???????????????????????# #????????????????""""?? | | ??????????????????????? ?????????????????????? | | ?????????????????????? ????????????????""""?? | | ?????????????????????? ???????????????""""?? | | ????????????????????? ???????????????""""?? | | ?????????????????????## #????????????????????? | | ??????????????????????###+###????????????????????? | | ?????????????????????????????????????????????????? | | ?????????????????????????????????????????????????? | | ?????????????????????????????????????????????????? | | ?????????????????????????????????????????????????? | | ?????????????????????????????????????????????????? | | ?????????????????????????????????????????????????? | | ?????????????????????????????????????????????????? | | ?????????????????????????????????????????????????? | | ?????????????????????????????????????????????????? | | ?????????????????????????????????????????????????? | | ?????????????????????????????????????????????????? | | ?????????????????????????????????????????????????? | | ?????????????????????????????????????????????????? | +----------------------------------------------------+ Best States ------------- Heat Dissipation 45 Energy Generation 14 Energy Capacity 280 Matter Stores 300 Matter Capacity 300 Sight Range 16 Terrain Scan Density 10 Armor Coverage 150 Propulsion Shielding 33 Evasion (%) 55 Recoil Reduction 1 Kinecelleration 30 Offensive Hacking 10 Defensive Hacking 10 Item Schematics ----------------- None Robot Schematics ------------------ None Fabricated ------------ Nothing Alien Tech Used ----------------- None Achievements -------------- None Challenges ------------ None Game ------ Seed FlakShockRecalibrator Manual? 0 Play Time 00:30:35 Cumulative 8.2 hours Start 2024.05.06 @ 01:44:42 End 2024.05.06 @ 02:31:10 Sessions 1 Manual Loads 0 Difficulty Rogue Special Mode None Game No. 12 Rogue 12 Adventurer 0 Explorer 0 Win Type - Total 0 Types 0/0/0/0/0/0/0/0/0 Lore% 2 Gallery% 13 Achievement% 11 Wizard Run 0 Options --------- Layout 1 ASCII 0 Keyboard 0 Movement Mouse Keybinds 0 Fullscreen 1 Font 32/SmallcapsGlow Map View 50x35 Zoom Use 0% Tactical HUD 0 Map Filters NONE Filters NONE Steam 1 RUN: 379b306e-07ea-438c-bf56-b71fbf563d55